fUST/lending_fUST_20251030
["ID","MTS","AMOUNT","RATE_DAILY","PERIOD"]
[392680960,1761809461415,-500.0,0.00031725,4]
[392680961,1761809461428,-500.0,0.00031725,4]
[392680962,1761809461437,-1000.0,0.00031725,2]
[392680963,1761809461448,-500.0,0.00031725,4]
[392680964,1761809461458,-500.0,0.00031725,4]
[392680965,1761809461468,-500.0,0.00031725,4]
[392680966,1761809461478,-500.0,0.00031725,4]
[392680967,1761809461486,-500.0,0.00031725,4]
[392680968,1761809461498,-500.0,0.00031725,4]
[392680969,1761809461507,-500.0,0.00031725,4]
[392680970,1761809461516,-500.0,0.00031725,4]
[392680971,1761809461525,-500.0,0.00031725,4]
[392680972,1761809461534,-500.0,0.00031725,4]
[392680973,1761809461543,-500.0,0.00031725,4]
[392680974,1761809461552,-500.0,0.00031725,4]
[392680975,1761809461561,-500.0,0.00031725,4]
[392680976,1761809461572,-500.0,0.00031725,4]
[392680977,1761809461583,-500.0,0.00031725,4]
[392680978,1761809461593,-500.0,0.00031725,4]
[392680979,1761809461603,-500.0,0.00031725,4]
[392680980,1761809461613,-500.0,0.00031725,4]
[392680981,1761809461622,-500.0,0.00031725,4]
[392680982,1761809461632,-500.0,0.00031725,4]
[392680983,1761809461641,-500.0,0.00031725,4]
[392680984,1761809461651,-500.0,0.00031725,4]
[392680985,1761809461661,-500.0,0.00031725,4]
[392680986,1761809461670,-500.0,0.00031725,4]
[392680987,1761809461679,-500.0,0.00031725,4]
[392680988,1761809461689,-500.0,0.00031725,4]
[392680989,1761809461699,-500.0,0.00031725,4]
[392680990,1761809461709,-500.0,0.00031725,4]
[392680991,1761809461718,-500.0,0.00031725,4]
[392680992,1761809461727,-500.0,0.00031725,4]
[392680993,1761809461737,-500.0,0.00031725,4]
[392680994,1761809461748,-500.0,0.00031725,4]
[392680995,1761809461758,-500.0,0.00031725,4]
[392680996,1761809461767,-500.0,0.00031725,4]
[392680997,1761809461777,-500.0,0.00031725,4]
[392680998,1761809461786,-500.0,0.00031725,4]
[392680999,1761809461795,-500.0,0.00031725,4]
[392681000,1761809461803,-500.0,0.00031725,4]
[392681001,1761809461813,-632.6165262,0.00031725,4]
[392681002,1761809461822,-500.0,0.00031725,4]
[392681003,1761809461831,-500.0,0.00031725,4]
[392681004,1761809461841,-500.0,0.00031725,4]
[392681005,1761809461850,-500.0,0.00031725,4]
[392681006,1761809461859,-500.0,0.00031725,4]
[392681007,1761809461867,-552.89,0.00031725,2]
[392681008,1761809461876,-500.0,0.00031823,4]
[392681009,1761809461885,-500.0,0.00031823,4]
[392681010,1761809461894,-500.0,0.00031823,4]
[392681011,1761809461903,-500.0,0.00031823,4]
[392681012,1761809461913,-593.57,0.00031823,4]
[392681013,1761809461924,-699.95,0.00031823,4]
[392681014,1761809461938,-969.18,0.00031823,4]
[392681015,1761809461949,-6089.26,0.00031823,4]
[392681016,1761809461959,-500.0,0.00031823,4]
[392681017,1761809461969,-500.0,0.00031823,4]
[392681018,1761809461978,-538.88,0.00031823,4]
[392681019,1761809461987,-910.8,0.00031823,4]
[392681020,1761809461998,-660.73,0.00031824,4]
[392681021,1761809462007,-500.0,0.00031824,4]
[392681022,1761809462016,-500.0,0.00031824,4]
[392681023,1761809462025,-574.8,0.00031824,4]
[392681024,1761809462035,-589.59,0.00031824,4]
[392681025,1761809462044,-500.0,0.00031824,4]
[392681026,1761809462053,-500.0,0.00031824,4]
[392681027,1761809462063,-571.19,0.00031824,4]
[392681028,1761809462073,-500.0,0.00031824,4]
[392681029,1761809462082,-698.98,0.00031824,4]
[392681030,1761809462092,-500.0,0.00031834,4]
[392681031,1761809462102,-500.0,0.00031834,4]
[392681032,1761809462111,-500.0,0.00031834,4]
[392681033,1761809462120,-500.0,0.00031834,4]
[392681034,1761809462130,-500.0,0.00031834,4]
[392681035,1761809462139,-647.22,0.00031834,4]
[392681036,1761809462148,-995.37,0.00031834,4]
[392681037,1761809462157,-523.13,0.00031834,4]
[392681038,1761809462166,-500.0,0.00031834,4]
[392681039,1761809462176,-500.0,0.00031834,4]
[392681040,1761809462186,-614.98,0.00031834,4]
[392681041,1761809462196,-500.0,0.00031834,4]
[392681042,1761809462206,-375.1,0.00031834,4]
[392681043,1761809462215,-2512.83,0.00031834,3]
[392681044,1761809462224,-500.0,0.00031834,4]
[392681045,1761809462234,-606.11,0.00031834,4]
[392681046,1761809462244,-500.0,0.00031836,4]
[392681047,1761809462253,-500.0,0.00031836,4]
[392681048,1761809462263,-500.0,0.00031836,4]
[392681049,1761809462274,-536.13,0.00031836,4]
[392681050,1761809462283,-499.03,0.00031836,4]
[392681051,1761809462293,-500.0,0.00031836,4]
[392681052,1761809462302,-500.0,0.00031837,4]
[392681053,1761809462312,-522.55,0.00031837,4]
[392681054,1761809462320,-500.0,0.00031837,4]
[392681055,1761809462330,-500.0,0.00031837,4]
[392681056,1761809462338,-500.0,0.00031837,4]
[392681057,1761809462347,-500.0,0.00031837,4]
[392681058,1761809462358,-500.0,0.00031837,4]
[392681059,1761809462366,-500.0,0.00031837,4]
[392681060,1761809462375,-500.0,0.00031837,4]
[392681061,1761809462385,-741.07,0.00031837,4]
[392681062,1761809462394,-500.0,0.00031837,4]
[392681063,1761809462403,-500.0,0.00031837,4]
[392681064,1761809462412,-500.0,0.00031837,4]
[392681065,1761809462427,-500.0,0.00031837,4]
[392681066,1761809462438,-500.0,0.00031837,4]
[392681067,1761809462449,-635.79,0.00031837,4]
[392681068,1761809462459,-500.0,0.00031837,4]
[392681069,1761809462469,-500.0,0.00031837,4]
[392681070,1761809462478,-1666.88,0.00031969,4]
[392681071,1761809462487,-500.0,0.00031999,4]
[392681072,1761809462497,-500.0,0.00031999,4]
[392681073,1761809462508,-500.0,0.00031999,4]
[392681074,1761809462517,-500.0,0.00031999,4]
[392681075,1761809462527,-500.0,0.00031999,4]
[392681076,1761809462537,-500.0,0.00031999,4]
[392681077,1761809462547,-500.0,0.00031999,4]
[392681078,1761809462556,-500.0,0.00031999,4]
[392681079,1761809462566,-500.0,0.00031999,4]
[392681080,1761809462574,-500.0,0.00031999,4]
[392681081,1761809462584,-500.0,0.00031999,4]
[392681082,1761809462594,-500.0,0.00031999,4]
[392681083,1761809462604,-507.19174089,0.00031999,4]
[392681084,1761809462613,-588.2630843,0.00031999,4]
[392681085,1761809462623,-154.45866196,0.00031999,4]
[392681086,1761809462632,-338.68,0.00031999,4]
[392681087,1761809462641,-278.4,0.00031999,4]
[392681088,1761809462650,-1323.12,0.00031999,4]
[392681089,1761809462661,-500.0,0.00031999,4]
[392681090,1761809462673,-500.0,0.00031999,4]
[392681091,1761809462682,-219.44,0.00031999,4]
[392681092,1761809462691,-395.84,0.00031999,4]
[392681093,1761809462700,-500.0,0.00031999,4]
[392681094,1761809462711,-503.34584586,0.00031999,4]
[392681095,1761809462720,-500.0,0.00031999,4]
[392681096,1761809462729,-500.0,0.00031999,4]
[392681097,1761809462738,-500.0,0.00031999,4]
[392681098,1761809462748,-500.0,0.00031999,4]
[392681099,1761809462758,-500.0,0.00031999,4]
[392681100,1761809462767,-500.0,0.00031999,4]
[392681101,1761809462776,-362.78320675,0.00031999,4]
[392681102,1761809462786,-500.0,0.00031999,4]
[392681103,1761809462795,-500.0,0.00031999,4]
[392681104,1761809462804,-500.0,0.00031999,4]
[392681105,1761809462813,-500.0,0.00031999,4]
[392681106,1761809462822,-500.0,0.00031999,4]
[392681107,1761809462831,-1000.0,0.00031999,2]
[392681108,1761809462840,-500.0,0.00031999,4]
[392681109,1761809462850,-500.0,0.00031999,4]
[392681110,1761809462859,-500.0,0.00031999,4]
[392681111,1761809462868,-178.46597866,0.00031999,4]
[392681112,1761809462877,-500.0,0.00031999,4]
[392681113,1761809462888,-500.0,0.00031999,4]
[392681114,1761809462898,-500.0,0.00031999,4]
[392681115,1761809462907,-500.0,0.00031999,4]
[392681116,1761809462917,-500.0,0.00031999,4]
[392681117,1761809462926,-500.0,0.00031999,4]
[392681118,1761809462936,-500.0,0.00031999,4]
[392681119,1761809462945,-500.0,0.00031999,4]
[392681120,1761809462954,-500.0,0.00031999,4]
[392681121,1761809462963,-500.0,0.00031999,4]
[392681122,1761809462972,-500.0,0.00031999,4]
[392681123,1761809462982,-500.0,0.00031999,4]
[392681124,1761809462992,-501.47550949,0.00031999,4]
[392681125,1761809463003,-500.0,0.00031999,4]
[392681126,1761809463012,-500.0,0.00031999,4]
[392681127,1761809463021,-500.0,0.00031999,4]
[392681128,1761809463030,-500.0,0.00031999,4]
[392681129,1761809463040,-500.0,0.00031999,4]
[392681130,1761809463050,-500.0,0.00031999,4]
[392681131,1761809463060,-500.0,0.00031999,4]
[392681132,1761809463070,-500.0,0.00031999,4]
[392681133,1761809463081,-500.0,0.00031999,4]
[392681134,1761809463090,-500.0,0.00031999,4]
[392681135,1761809463100,-500.0,0.00031999,4]
[392681136,1761809463109,-500.0,0.00031999,4]
[392681137,1761809463118,-500.0,0.00031999,4]
[392681138,1761809463128,-500.0,0.00031999,4]
[392681139,1761809463137,-500.0,0.00031999,4]
[392681140,1761809463147,-500.0,0.00031999,4]
[392681141,1761809463156,-500.0,0.00031999,4]
[392681142,1761809463165,-500.0,0.00031999,4]
[392681143,1761809463175,-500.0,0.00031999,4]
[392681144,1761809463184,-500.0,0.00031999,4]
[392681145,1761809463193,-500.0,0.00031999,4]
[392681146,1761809463203,-500.0,0.00031999,4]
[392681147,1761809463213,-495.16366121,0.00031999,4]
[392681148,1761809463223,-500.0,0.00031999,4]
[392681149,1761809463232,-500.0,0.00031999,4]
[392681150,1761809463243,-500.0,0.00031999,4]
[392681151,1761809463253,-552.89,0.00031999,2]
[392681152,1761809463262,-1180.23994235,0.00032004,2]
[392681153,1761809463271,-1466.0771861,0.00032077,2]
[392681154,1761809463280,-500.0,0.00032097,4]
[392681155,1761809463290,-500.0,0.00032097,4]
[392681156,1761809463299,-500.0,0.00032097,4]
[392681157,1761809463308,-500.0,0.00032097,4]
[392681158,1761809463318,-593.57,0.00032097,4]
[392681159,1761809463327,-699.95,0.00032097,4]
[392681160,1761809463336,-969.18,0.00032097,4]
[392681161,1761809463346,-6089.26,0.00032097,4]
[392681162,1761809463355,-500.0,0.00032097,4]
[392681163,1761809463364,-500.0,0.00032097,4]
[392681164,1761809463374,-538.88,0.00032097,4]
[392681165,1761809463384,-910.8,0.00032097,4]
[392681166,1761809463393,-660.73,0.00032098,4]
[392681167,1761809463403,-500.0,0.00032098,4]
[392681168,1761809463413,-500.0,0.00032098,4]
[392681169,1761809463423,-589.59,0.00032098,4]
[392681170,1761809463432,-500.0,0.00032098,4]
[392681171,1761809463445,-500.0,0.00032098,4]
[392681172,1761809463455,-571.19,0.00032098,4]
[392681173,1761809463465,-500.0,0.00032098,4]
[392681174,1761809463474,-698.98,0.00032098,4]
[392681175,1761809463484,-500.0,0.00032108,4]
[392681176,1761809463494,-500.0,0.00032108,4]
[392681177,1761809463504,-500.0,0.00032108,4]
[392681178,1761809463513,-500.0,0.00032108,4]
[392681179,1761809463522,-500.0,0.00032108,4]
[392681180,1761809463531,-647.22,0.00032108,4]
[392681181,1761809463540,-995.37,0.00032108,4]
[392681182,1761809463550,-523.13,0.00032108,4]
[392681183,1761809463559,-500.0,0.00032108,4]
[392681184,1761809463569,-500.0,0.00032108,4]
[392681185,1761809463579,-614.98,0.00032108,4]
[392681186,1761809463589,-500.0,0.00032108,4]
[392681187,1761809463599,-2512.83,0.00032108,3]
[392681188,1761809463609,-500.0,0.00032108,4]
[392681189,1761809463619,-606.11,0.00032108,4]
[392681190,1761809463629,-500.0,0.0003211,4]
[392681191,1761809463638,-500.0,0.0003211,4]
[392681192,1761809463648,-239.21,0.0003211,4]
[392681193,1761809463658,-536.13,0.0003211,4]
[392681194,1761809463668,-500.0,0.0003211,4]
[392681195,1761809463678,-500.0,0.00032111,4]
[392681196,1761809463688,-500.0,0.00032111,4]
[392681197,1761809463698,-402.29,0.00032111,4]
[392681198,1761809463708,-463.07,0.00032111,4]
[392681199,1761809463717,-500.0,0.00032111,4]
[392681200,1761809463727,-500.0,0.00032111,4]
[392681201,1761809463830,-500.0,0.00032111,4]
[392681202,1761809463840,-388.16,0.00032111,4]
[392681203,1761809463850,-741.07,0.00032111,4]
[392681204,1761809463860,-500.0,0.00032111,4]
[392681205,1761809463869,-500.0,0.00032111,4]
[392681206,1761809463879,-475.24,0.00032111,4]
[392681207,1761809463889,-500.0,0.00032111,4]
[392681208,1761809463898,-500.0,0.00032111,4]
[392681209,1761809463907,-635.79,0.00032111,4]
[392681210,1761809463917,-500.0,0.00032111,4]
[392681211,1761809463927,-500.0,0.00032111,4]
[392681212,1761809463936,-1180.23994235,0.00032171,2]
[392681213,1761809463945,-1666.88,0.00032243,4]
[392681214,1761809463955,-326.66,0.00032273,4]
[392681215,1761809463964,-500.0,0.00032273,4]
[392681216,1761809463975,-500.0,0.00032273,4]
[392681217,1761809463984,-500.0,0.00032273,4]
[392681218,1761809463994,-299.0,0.00032273,4]
[392681219,1761809464004,-331.9898425,0.00032273,4]
[392681220,1761809464013,-556.82881416,0.00032273,4]
[392681221,1761809464023,-500.0,0.00032273,4]
[392681222,1761809464032,-500.0,0.00032273,4]
[392681223,1761809464042,-500.0,0.00032273,4]
[392681224,1761809464051,-500.0,0.00032273,4]
[392681225,1761809464060,-369.73178384,0.00032273,4]
[392681226,1761809464070,-1323.12,0.00032273,4]
[392681227,1761809464079,-500.0,0.00032273,4]
[392681228,1761809464088,-500.0,0.00032273,4]
[392681229,1761809464098,-646.28,0.00032273,4]
[392681230,1761809464107,-500.0,0.00032273,4]
[392681231,1761809464117,-500.0,0.00032273,4]
[392681232,1761809464126,-500.0,0.00032273,4]
[392681233,1761809464135,-151.9,0.00032273,4]
[392681234,1761809464145,-290.2,0.00032273,4]
[392681235,1761809464153,-500.0,0.00032273,4]
[392681236,1761809464162,-500.0,0.00032273,4]
[392681237,1761809464172,-500.0,0.00032273,4]
[392681238,1761809464181,-500.0,0.00032273,4]
[392681239,1761809464189,-500.0,0.00032273,4]
[392681240,1761809464199,-500.0,0.00032273,4]
[392681241,1761809464208,-282.95,0.00032273,4]
[392681242,1761809464218,-500.0,0.00032273,4]
[392681243,1761809464228,-303.6,0.00032273,4]
[392681244,1761809464237,-500.0,0.00032273,4]
[392681245,1761809464247,-500.0,0.00032273,4]
[392681246,1761809464257,-500.0,0.00032273,4]
[392681247,1761809464266,-552.89,0.00032273,2]
[392681248,1761809464276,-500.0,0.00032371,4]
[392681249,1761809464285,-500.0,0.00032371,4]
[392681250,1761809464295,-500.0,0.00032371,4]
[392681251,1761809464304,-500.0,0.00032371,4]
[392681252,1761809464313,-593.57,0.00032371,4]
[392681253,1761809464323,-699.95,0.00032371,4]
[392681254,1761809464331,-969.18,0.00032371,4]
[392681255,1761809464341,-6089.26,0.00032371,4]
[392681256,1761809464351,-500.0,0.00032371,4]
[392681257,1761809464360,-500.0,0.00032371,4]
[392681258,1761809464369,-538.88,0.00032371,4]
[392681259,1761809464379,-910.8,0.00032371,4]
[392681260,1761809464388,-660.73,0.00032372,4]
[392681261,1761809464397,-180.16,0.00032372,4]
[392681262,1761809464405,-259.56,0.00032372,4]
[392681263,1761809464414,-589.59,0.00032372,4]
[392681264,1761809464423,-500.0,0.00032372,4]
[392681265,1761809464433,-500.0,0.00032372,4]
[392681266,1761809464446,-571.19,0.00032372,4]
[392681267,1761809464456,-500.0,0.00032372,4]
[392681268,1761809464465,-698.98,0.00032372,4]
[392681269,1761809464475,-500.0,0.00032382,4]
[392681270,1761809464484,-500.0,0.00032382,4]
[392681271,1761809464494,-500.0,0.00032382,4]
[392681272,1761809464503,-500.0,0.00032382,4]
[392681273,1761809464513,-500.0,0.00032382,4]
[392681274,1761809464522,-647.22,0.00032382,4]
[392681275,1761809464531,-995.37,0.00032382,4]
[392681276,1761809464540,-523.13,0.00032382,4]
[392681277,1761809464550,-500.0,0.00032382,4]
[392681278,1761809464559,-500.0,0.00032382,4]
[392681279,1761809464569,-614.98,0.00032382,4]
[392681280,1761809464579,-500.0,0.00032382,4]
[392681281,1761809464588,-2512.83,0.00032382,3]
[392681282,1761809464598,-500.0,0.00032382,4]
[392681283,1761809464607,-606.11,0.00032382,4]
[392681284,1761809464616,-500.0,0.00032384,4]
[392681285,1761809464625,-500.0,0.00032384,4]
[392681286,1761809464635,-536.13,0.00032384,4]
[392681287,1761809464644,-500.0,0.00032384,4]
[392681288,1761809464653,-500.0,0.00032385,4]
[392681289,1761809464662,-500.0,0.00032385,4]
[392681290,1761809464671,-500.0,0.00032385,4]
[392681291,1761809464680,-500.0,0.00032385,4]
[392681292,1761809464690,-334.11,0.00032385,4]
[392681293,1761809464699,-741.07,0.00032385,4]
[392681294,1761809464708,-500.0,0.00032385,4]
[392681295,1761809464717,-500.0,0.00032385,4]
[392681296,1761809464727,-500.0,0.00032385,4]
[392681297,1761809464737,-405.55,0.00032385,4]
[392681298,1761809464746,-635.79,0.00032385,4]
[392681299,1761809464756,-481.05,0.00032385,4]
[392681300,1761809464766,-500.0,0.00032385,4]
[392681301,1761809464775,-1180.23994235,0.00032386,2]
[392681302,1761809464784,-1666.88,0.00032517,4]
[392681303,1761809464793,-527.94,0.00032547,4]
[392681304,1761809464803,-552.38417507,0.00032547,4]
[392681305,1761809464812,-526.71435423,0.00032547,4]
[392681306,1761809464822,-382.83,0.00032547,4]
[392681307,1761809464831,-500.0,0.00032547,4]
[392681308,1761809464840,-500.0,0.00032547,4]
[392681309,1761809464850,-500.0,0.00032547,4]
[392681310,1761809464859,-1323.12,0.00032547,4]
[392681311,1761809464868,-500.0,0.00032547,4]
[392681312,1761809464879,-500.0,0.00032547,4]
[392681313,1761809464889,-190.9,0.00032547,4]
[392681314,1761809464899,-500.0,0.00032547,4]
[392681315,1761809464908,-542.35,0.00032547,4]
[392681316,1761809464918,-500.0,0.00032547,4]
[392681317,1761809464927,-240.8,0.00032547,4]
[392681318,1761809464936,-500.0,0.00032547,4]
[392681319,1761809464946,-500.0,0.00032547,4]
[392681320,1761809464955,-500.0,0.00032547,4]
[392681321,1761809464965,-500.0,0.00032547,4]
[392681322,1761809464974,-500.0,0.00032547,4]
[392681323,1761809464984,-162.1,0.00032547,4]
[392681324,1761809464993,-259.3,0.00032547,4]
[392681325,1761809465004,-500.0,0.00032547,4]
[392681326,1761809465014,-552.89,0.00032547,2]
[392681327,1761809465023,-500.0,0.00032645,4]
[392681328,1761809465033,-405.24,0.00032645,4]
[392681329,1761809465042,-500.0,0.00032645,4]
[392681330,1761809465051,-500.0,0.00032645,4]
[392681331,1761809465061,-593.57,0.00032645,4]
[392681332,1761809465070,-699.95,0.00032645,4]
[392681333,1761809465079,-969.18,0.00032645,4]
[392681334,1761809465089,-6089.26,0.00032645,4]
[392681335,1761809465099,-500.0,0.00032645,4]
[392681336,1761809465108,-500.0,0.00032645,4]
[392681337,1761809465118,-538.88,0.00032645,4]
[392681338,1761809465128,-910.8,0.00032645,4]
[392681339,1761809465137,-660.73,0.00032646,4]
[392681340,1761809465146,-589.59,0.00032646,4]
[392681341,1761809465157,-500.0,0.00032646,4]
[392681342,1761809465167,-500.0,0.00032646,4]
[392681343,1761809465176,-571.19,0.00032646,4]
[392681344,1761809465186,-409.03283383,0.00032646,4]
[392681345,1761809465196,-698.98,0.00032646,4]
[392681346,1761809465206,-500.0,0.00032656,4]
[392681347,1761809465215,-500.0,0.00032656,4]
[392681348,1761809465224,-500.0,0.00032656,4]
[392681349,1761809465234,-500.0,0.00032656,4]
[392681350,1761809465245,-500.0,0.00032656,4]
[392681351,1761809465254,-647.22,0.00032656,4]
[392681352,1761809465263,-995.37,0.00032656,4]
[392681353,1761809465273,-523.13,0.00032656,4]
[392681354,1761809465282,-500.0,0.00032656,4]
[392681355,1761809465292,-500.0,0.00032656,4]
[392681356,1761809465301,-614.98,0.00032656,4]
[392681357,1761809465311,-500.0,0.00032656,4]
[392681358,1761809465320,-2512.83,0.00032656,3]
[392681359,1761809465331,-500.0,0.00032656,4]
[392681360,1761809465341,-606.11,0.00032656,4]
[392681361,1761809465350,-500.0,0.00032658,4]
[392681362,1761809465360,-500.0,0.00032658,4]
[392681363,1761809465369,-536.13,0.00032658,4]
[392681364,1761809465379,-500.0,0.00032658,4]
[392681365,1761809465388,-385.99,0.00032659,4]
[392681366,1761809465398,-500.0,0.00032659,4]
[392681367,1761809465407,-500.0,0.00032659,4]
[392681368,1761809465416,-500.0,0.00032659,4]
[392681369,1761809465426,-741.07,0.00032659,4]
[392681370,1761809465435,-500.0,0.00032659,4]
[392681371,1761809465448,-500.0,0.00032659,4]
[392681372,1761809465458,-500.0,0.00032659,4]
[392681373,1761809465467,-635.79,0.00032659,4]
[392681374,1761809465477,-500.0,0.00032659,4]
[392681375,1761809465486,-1180.23994235,0.00032679,2]
[392681376,1761809465496,-1666.88,0.00032791,4]
[392681377,1761809465505,-915.0,0.00032807,2]
[392681378,1761809465514,-412.0,0.00032818,2]
[392681379,1761809465523,-500.0,0.00032821,4]
[392681380,1761809465533,-500.0,0.00032821,4]
[392681381,1761809465546,-500.0,0.00032821,4]
[392681382,1761809465556,-1323.12,0.00032821,4]
[392681383,1761809465565,-500.0,0.00032821,4]
[392681384,1761809465574,-500.0,0.00032821,4]
[392681385,1761809465583,-500.0,0.00032821,4]
[392681386,1761809465592,-500.0,0.00032821,4]
[392681387,1761809465603,-500.0,0.00032821,4]
[392681388,1761809465611,-539.3,0.00032821,4]
[392681389,1761809465620,-500.0,0.00032821,4]
[392681390,1761809465630,-204.45,0.00032821,4]
[392681391,1761809465639,-500.0,0.00032821,4]
[392681392,1761809465649,-500.0,0.00032821,4]
[392681393,1761809465658,-488.09,0.000329,14]
[392681394,1761809465667,-500.0,0.00032919,4]
[392681395,1761809465676,-500.0,0.00032919,4]
[392681396,1761809465685,-500.0,0.00032919,4]
[392681397,1761809465694,-593.57,0.00032919,4]
[392681398,1761809465703,-699.95,0.00032919,4]
[392681399,1761809465712,-969.18,0.00032919,4]
[392681400,1761809465721,-6089.26,0.00032919,4]
[392681401,1761809465731,-500.0,0.00032919,4]
[392681402,1761809465739,-500.0,0.00032919,4]
[392681403,1761809465750,-538.88,0.00032919,4]
[392681404,1761809465759,-910.8,0.00032919,4]
[392681405,1761809465768,-660.73,0.0003292,4]
[392681406,1761809465777,-589.59,0.0003292,4]
[392681407,1761809465787,-500.0,0.0003292,4]
[392681408,1761809465797,-500.0,0.0003292,4]
[392681409,1761809465806,-571.19,0.0003292,4]
[392681410,1761809465816,-698.98,0.0003292,4]
[392681411,1761809465827,-500.0,0.0003293,4]
[392681412,1761809465835,-500.0,0.0003293,4]
[392681413,1761809465845,-368.76,0.0003293,4]
[392681414,1761809465853,-500.0,0.0003293,4]
[392681415,1761809465861,-500.0,0.0003293,4]
[392681416,1761809465870,-647.22,0.0003293,4]
[392681417,1761809465878,-995.37,0.0003293,4]
[392681418,1761809465887,-523.13,0.0003293,4]
[392681419,1761809465895,-500.0,0.0003293,4]
[392681420,1761809465903,-500.0,0.0003293,4]
[392681421,1761809465912,-614.98,0.0003293,4]
[392681422,1761809465922,-500.0,0.0003293,4]
[392681423,1761809465931,-2512.83,0.0003293,3]
[392681424,1761809465940,-500.0,0.0003293,4]
[392681425,1761809465950,-606.11,0.0003293,4]
[392681426,1761809465960,-500.0,0.00032932,4]
[392681427,1761809465969,-500.0,0.00032932,4]
[392681428,1761809465979,-536.13,0.00032932,4]
[392681429,1761809465989,-166.48,0.00032932,4]
[392681430,1761809466000,-309.83,0.00032933,4]
[392681431,1761809466009,-500.0,0.00032933,4]
[392681432,1761809466018,-500.0,0.00032933,4]
[392681433,1761809466027,-741.07,0.00032933,4]
[392681434,1761809466127,-500.0,0.00032933,4]
[392681435,1761809466137,-539.72,0.00032933,4]
[392681436,1761809466148,-234.63607635,0.00032933,4]
[392681437,1761809466158,-635.79,0.00032933,4]
[392681438,1761809466168,-4388.0,0.00032933,2]
[392681439,1761809466178,-500.0,0.00032933,4]
[392681440,1761809466188,-917.0,0.00032957,7]
[392681441,1761809466198,-1180.23994235,0.00033055,2]
[392681442,1761809466207,-1666.88,0.00033065,4]
[392681443,1761809466217,-500.0,0.00033095,4]
[392681444,1761809466226,-500.0,0.00033095,4]
[392681445,1761809466236,-500.0,0.00033095,4]
[392681446,1761809466247,-1323.12,0.00033095,4]
[392681447,1761809466255,-500.0,0.00033095,4]
[392681448,1761809466265,-164.24,0.00033095,4]
[392681449,1761809466275,-500.0,0.00033095,4]
[392681450,1761809466284,-500.0,0.00033095,4]
[392681451,1761809466293,-500.0,0.00033095,4]
[392681452,1761809466302,-500.0,0.00033095,4]
[392681453,1761809466312,-500.0,0.00033095,4]
[392681454,1761809466322,-500.0,0.00033095,4]
[392681455,1761809466331,-893.0,0.00033187,7]
[392681456,1761809466341,-500.0,0.00033193,4]
[392681457,1761809466350,-500.0,0.00033193,4]
[392681458,1761809466359,-500.0,0.00033193,4]
[392681459,1761809466369,-593.57,0.00033193,4]